bitfinex-derivatives/quotes_ETHF0:USTF0_20240907
["timestamp","ask_amount","ask_price","bid_price","bid_amount"]
[1725711077629,4.37902,2289.1,2288.9,1.16145]
[1725711078018,4.37902,2289.1,2288.9,0.7245]
[1725711081629,1.17122,2289.1,2288.9,0.7245]
[1725711083130,0.43693,2289.0,2288.9,0.7245]
[1725711083435,0.43693,2289.0,2288.9,0.3617]
[1725711084327,0.43695,2288.9,2288.8,0.3727]
[1725711084635,0.43697,2288.8,2288.7,0.7379]
[1725711084822,1.16887,2288.8,2288.7,0.7379]
[1725711086629,0.43699,2288.7,2288.6,0.3842]
[1725711086831,0.7319,2288.8,2288.6,2.08121]
[1725711087129,0.7319,2288.8,2288.7,0.7507]
[1725711087637,0.3791,2289.0,2288.8,0.43696]
[1725711087827,0.3791,2289.0,2288.9,0.3911]
[1725711089735,0.81603,2289.0,2288.9,0.3911]
[1725711090426,0.3791,2289.0,2288.9,0.3911]
[1725711092335,4.38591,2289.2,2288.9,0.82805]
[1725711094545,0.43691,2289.1,2288.9,0.3911]
[1725711095036,0.43691,2289.1,2288.9,0.82805]
[1725711095346,4.38591,2289.2,2288.9,0.82805]
[1725711095839,0.43691,2289.1,2288.9,0.3911]
[1725711096037,3.949,2289.2,2288.9,0.82805]
[1725711096240,4.3859,2289.2,2288.9,0.82805]
[1725711096537,3.43976829,2289.1,2288.9,0.3911]
[1725711097234,7.82566829,2289.2,2288.9,0.3911]
[1725711097745,7.82566829,2289.2,2288.9,0.82805]
[1725711098142,7.82566829,2289.2,2288.8,1.69696]
[1725711098435,3.87667829,2289.1,2288.8,2.07286]
[1725711098636,3.2078,2288.9,2288.4,4.4678]
[1725711098845,3.9772,2288.8,2288.4,4.4678]
[1725711099045,4.3451,2288.8,2288.4,3.2078]
[1725711099342,0.43702,2288.6,2288.4,3.2078]
[1725711100036,0.437,2288.7,2288.4,3.2078]
[1725711100947,0.437,2288.7,2288.4,4.4678]
[1725711101138,0.437,2288.7,2288.4,4.90485]
[1725711101645,5.01404829,2288.8,2288.5,0.43703]
[1725711101847,5.01404829,2288.8,2288.6,0.3587]
[1725711102051,0.43699,2288.7,2288.6,0.3587]
[1725711102241,5.01404829,2288.8,2288.6,0.3587]
[1725711102444,0.43699,2288.7,2288.6,0.3587]
[1725711103350,5.01404829,2288.8,2288.6,0.3587]
[1725711103645,1.57428,2288.8,2288.6,0.3587]
[1725711103844,6.64756829,2289.1,2288.7,1.26]
[1725711104048,0.4369,2289.2,2289.0,1.26]
[1725711104544,0.43691,2289.1,2289.0,1.6492]
[1725711104848,0.43691,2289.1,2288.7,1.69698]
[1725711104849,0.43693,2289.1,2288.7,1.69698]
[1725711105041,1.1581,2289.0,2288.8,0.43697]
[1725711106140,0.7622,2289.0,2288.8,0.43697]
[1725711113546,0.7622,2289.0,2288.9,0.43695]
[1725711113742,0.7622,2289.0,2288.9,1.69695]
[1725711114747,0.7622,2289.0,2288.9,1.26]
[1725711119845,0.7622,2289.0,2288.9,1.6345]
[1725711120547,0.43697,2288.8,2288.7,1.14697997]
[1725711120743,0.43701,2288.6,2288.5,0.3745]
[1725711121042,3.2078,2288.8,2288.4,0.43705]
[1725711121043,0.371,2288.7,2288.4,0.43705]
[1725711121264,0.7653,2288.5,2288.3,1.69705]
[1725711121644,0.7653,2288.5,2288.4,0.43705]
[1725711121851,0.7653,2288.5,2288.4,1.69705]
[1725711126057,0.808,2288.7,2288.4,1.69705]
[1725711126355,3.2078,2288.8,2288.4,1.69705]
[1725711126356,1.19748,2288.8,2288.6,1.26]
[1725711126648,0.7605,2288.8,2288.7,0.3937]
[1725711126848,1.19747,2288.8,2288.7,0.77]
[1725711127353,1.19747,2288.8,2288.6,1.26]
[1725711128853,1.19747,2288.8,2288.6,1.69701]
[1725711130455,1.19747,2288.8,2288.6,2.06041]
[1725711130751,1.19747,2288.8,2288.6,1.6234]
[1725711131853,1.19747,2288.8,2288.6,2.06041]
[1725711132254,0.43699,2288.7,2288.6,0.3634]
[1725711139963,0.43701,2288.6,2288.5,1.6442]
[1725711145068,0.437,2288.7,2288.5,1.6442]
[1725711145264,0.43701,2288.6,2288.5,1.6442]
[1725711154875,0.437,2288.7,2288.5,1.6442]
[1725711155675,0.43701,2288.6,2288.5,1.6442]
[1725711158168,0.43701,2288.6,2288.5,0.3842]
[1725711161876,0.43703,2288.5,2288.4,0.3944]
[1725711162074,0.43703,2288.5,2287.9,1.14697997]
[1725711162075,1.09267,2288.3,2287.9,1.14697997]
[1725711162373,0.43712,2288.0,2287.9,0.3663]
[1725711162569,0.43712,2288.1,2287.9,0.3663]
[1725711162769,0.83192,2288.1,2287.9,0.3663]
[1725711162971,0.43712,2288.0,2287.9,0.3663]
[1725711164574,5.6304,2288.0,2287.4,4.35477997]
[1725711164780,5.6304,2288.0,2287.4,4.2992]
[1725711164781,0.4372,2287.6,2287.4,4.2992]
[1725711164977,0.4372,2287.6,2287.4,1.0914]
[1725711165372,0.4372,2287.6,2287.4,0.7291]
[1725711165768,4.3712,2287.6,2287.1,0.3623]
[1725711165973,0.43723,2287.5,2287.1,2.81159]
[1725711167770,0.43723,2287.5,2287.2,0.43728]
[1725711168474,3.64503,2287.5,2287.2,0.43728]
[1725711168973,0.43723,2287.5,2287.2,0.43728]
[1725711169168,3.64503,2287.5,2287.2,0.43728]
[1725711169692,3.64503,2287.5,2287.3,1.26]
[1725711170574,0.43724,2287.4,2287.1,1.55159]
[1725711170772,0.43724,2287.4,2287.2,1.26]
[1725711171682,0.43724,2287.4,2287.1,1.55159]
[1725711171984,0.43724,2287.4,2287.2,1.26]
[1725711172384,3.64503,2287.5,2287.2,1.69728]
[1725711172585,3.64503,2287.5,2287.1,1.55158]
[1725711172884,3.64503,2287.5,2287.2,1.26]
[1725711174681,0.43724,2287.4,2287.2,1.26]
[1725711175479,0.80954,2287.4,2287.2,1.26]
[1725711178776,0.80954,2287.4,2287.2,1.69727]
[1725711179384,0.3723,2287.4,2287.2,1.69727]
[1725711179580,0.80954,2287.4,2287.2,1.69727]
[1725711181485,0.3723,2287.4,2287.2,1.69727]
[1725711181785,0.43723,2287.5,2287.2,1.69726]
[1725711184487,4.43369,2287.7,2287.4,1.69723]
[1725711184693,0.4372,2287.6,2287.5,1.1195]
[1725711189987,3.64499,2287.7,2287.5,1.1195]
[1725711190185,0.43717,2287.8,2287.6,0.4372]
[1725711190385,1.17325,2287.9,2287.5,2.3795]
[1725711190589,1.17325,2287.9,2287.6,0.43719]
[1725711190794,0.43715,2287.9,2287.6,0.43719]
[1725711191195,3.64494,2288.0,2287.7,0.43717]
[1725711191397,3.64494,2288.0,2287.8,0.3592]
[1725711191888,3.2078,2288.0,2287.8,0.3592]
[1725711192093,0.43711,2288.1,2287.9,0.7586]
[1725711192396,0.3757,2288.3,2287.9,0.7586]
[1725711192397,0.4371,2288.2,2287.9,0.7586]
[1725711192893,0.43711,2288.1,2287.9,0.7586]
[1725711196799,3.64489,2288.2,2287.9,1.19574]
[1725711198106,3.64489,2288.2,2287.9,0.7586]
[1725711198807,3.64489,2288.2,2288.0,0.43712]
[1725711200110,3.64489,2288.2,2288.1,0.3618]
[1725711200304,0.43709,2288.2,2288.1,0.3618]
[1725711205524,0.43709,2288.2,2288.0,0.43712]
[1725711205525,3.5835,2288.3,2287.9,0.43713]
[1725711205709,0.43709,2288.2,2288.0,0.3817]
[1725711207631,0.4371,2288.1,2288.0,0.3817]
[1725711216824,3.6449,2288.2,2288.0,0.81882]
[1725711218930,0.4371,2288.1,2288.0,0.81882]
[1725711219435,0.4371,2288.1,2288.0,0.3817]
[1725711222035,3.6449,2288.2,2288.0,0.81882]
[1725711223333,0.4371,2288.2,2288.0,0.81882]
[1725711224232,3.6449,2288.2,2288.0,0.81882]
[1725711225536,0.4371,2288.2,2288.0,0.81882]
[1725711225743,3.6449,2288.2,2288.0,0.81882]
[1725711229544,0.81277,2288.3,2288.0,0.3817]
[1725711229739,0.81277,2288.3,2288.1,0.4371]
[1725711231045,0.81277,2288.3,2288.0,0.81881]
[1725711231544,0.81277,2288.3,2288.1,0.4371]
[1725711232130,0.43709,2288.2,2288.1,0.4371]
[1725711232744,0.81278,2288.3,2288.1,0.4371]
[1725711233247,0.56376227,2288.6,2288.4,0.43705]
[1725711233435,0.3957,2288.5,2288.4,0.43705]
[1725711234148,0.83273,2288.5,2288.4,0.43705]
[1725711234745,0.3957,2288.5,2288.4,0.43705]
[1725711235141,0.3957,2288.5,2288.3,0.3914]
[1725711235142,0.83273,2288.5,2288.3,0.82845]
[1725711236946,0.3596,2288.6,2288.5,0.43703]
[1725711237147,0.7403,2288.6,2288.5,0.43703]
[1725711238042,0.7403,2288.6,2288.3,0.3914]
[1725711238252,0.43705,2288.4,2288.2,1.17998]
[1725711238653,0.3807,2288.3,2288.2,1.17998]
[1725711240647,0.81777,2288.3,2288.2,0.7429]
[1725711240848,5.1388,2288.3,2287.9,1.69713]
[1725711241048,0.43711,2288.1,2287.9,1.69713]
[1725711241454,0.3678,2288.0,2287.9,1.69713]
[1725711241845,0.3678,2288.0,2287.9,1.26]
[1725711242051,0.3678,2288.0,2287.9,1.69714]
[1725711242552,7.42983848,2288.2,2287.9,1.26]
[1725711242759,7.79763848,2288.2,2288.0,0.43712]
[1725711243359,7.79763848,2288.2,2287.9,1.69713]
[1725711244063,3.41593848,2288.1,2288.0,0.43712]
[1725711244255,7.79763848,2288.2,2288.0,0.43712]
[1725711244653,7.79763848,2288.2,2288.1,0.3674]
[1725711246250,4.3817,2288.2,2288.1,0.3674]
[1725711246652,1.1739,2288.2,2288.1,0.3674]
[1725711246846,0.7368,2288.2,2288.1,0.3674]
[1725711247051,0.7368,2288.2,2288.1,0.8045]
[1725711250153,0.3678,2288.2,2288.1,0.8045]
[1725711252060,0.3613,2288.4,2288.2,0.43709]
[1725711252256,0.79835,2288.4,2288.2,1.20069]
[1725711252561,0.79835,2288.4,2288.1,0.3674]
[1725711252562,0.43707,2288.3,2288.1,0.3674]
[1725711252762,0.43707,2288.3,2288.1,0.8045]
[1725711252961,0.3859,2288.2,2288.1,0.8045]
[1725711253160,0.82299,2288.2,2288.1,0.8045]
[1725711253763,0.82299,2288.2,2288.0,0.83061]
[1725711253958,0.3694,2288.1,2288.0,0.83061]
[1725711255663,0.3694,2288.1,2288.0,0.3935]
[1725711255862,0.3694,2288.1,2288.0,0.83062]
[1725711257974,0.823,2288.2,2288.0,0.83062]
[1725711258356,0.3859,2288.2,2288.1,0.4371]
[1725711259267,4.23893848,2288.2,2288.0,0.83062]
[1725711260067,0.823,2288.2,2288.0,0.83062]
[1725711260769,0.4371,2288.1,2288.0,0.83062]
[1725711260970,0.823,2288.2,2288.0,0.83062]
[1725711261267,0.8257,2288.1,2288.0,0.43712]
[1725711261467,0.8257,2288.1,2287.9,3.58950125]
[1725711262664,0.3886,2288.1,2288.0,0.43712]
[1725711264072,3.64488,2288.3,2287.9,3.15237125]
[1725711264269,3.64488,2288.3,2288.0,0.43711]
[1725711264476,0.43709,2288.2,2288.1,0.3702]
[1725711265867,0.43709,2288.2,2288.1,0.8073]
[1725711266176,0.43709,2288.2,2288.1,0.3702]
[1725711268374,5.05454,2288.4,2288.1,0.8073]
[1725711268375,0.43708,2288.3,2288.1,0.8073]
[1725711268679,0.43709,2288.2,2288.1,0.8073]
[1725711269073,0.43709,2288.2,2288.1,0.3702]
[1725711270575,3.9619,2288.4,2288.1,0.3702]
[1725711270771,0.43707,2288.3,2288.2,0.43708]
[1725711271076,0.43707,2288.3,2288.1,0.80729]
[1725711272366,0.43707,2288.3,2288.2,0.43709]
[1725711272979,3.64486,2288.4,2288.2,0.43709]
[1725711273180,3.64486,2288.4,2288.3,0.384]
[1725711274680,0.43706,2288.4,2288.3,0.384]
[1725711278672,4.60077848,2288.5,2288.3,0.82106]
[1725711279082,0.43705,2288.4,2288.3,0.384]
[1725711279272,0.43707,2288.3,2288.1,0.80729]
[1725711280472,0.3718,2288.2,2288.1,0.43709]
[1725711280677,0.43707,2288.3,2288.1,0.80649]
[1725711281180,0.368,2288.2,2288.1,0.80649]
[1725711281390,0.368,2288.2,2288.1,1.18129]
[1725711282792,0.80886,2288.4,2288.2,0.43709]
[1725711283895,0.43707,2288.3,2288.1,1.1813]
[1725711284390,0.43707,2288.3,2288.1,2.32037125]
[1725711285182,4.01666,2288.4,2288.1,2.32037125]
[1725711285387,0.43707,2288.3,2288.1,2.32037125]
[1725711286183,4.01666,2288.4,2288.1,2.32037125]
[1725711288288,4.01666,2288.4,2288.2,0.43708]
[1725711288984,0.80886,2288.4,2288.2,0.43708]
[1725711289587,0.7661,2288.5,2288.4,0.43705]
[1725711290184,0.7661,2288.5,2288.4,0.79735]
[1725711290688,4.11,2288.8,2288.4,1.6203]
[1725711290891,0.80509,2288.7,2288.5,0.43702]
[1725711291390,4.22102848,2288.7,2288.5,0.43702]
[1725711292890,0.80509,2288.7,2288.5,0.43702]
[1725711293388,0.3681,2288.7,2288.4,2.81324]
[1725711293687,8.8374,2288.6,2288.0,5.33571125]
[1725711293896,0.4371,2288.1,2288.0,4.19664]
[1725711294082,0.43709,2288.2,2287.9,0.3827]
[1725711294285,1.57299,2288.2,2287.9,0.3827]
[1725711294486,1.57299,2288.2,2288.0,0.43712]
[1725711295787,1.57299,2288.2,2287.9,2.07983]
[1725711295987,1.57299,2288.2,2288.0,0.43712]
[1725711298495,1.1359,2288.2,2287.9,1.6427]
[1725711298690,1.57299,2288.2,2288.0,0.43711]
[1725711299390,1.57299,2288.2,2288.0,1.57618125]
[1725711299791,1.57299,2288.2,2288.0,1.13907125]
[1725711300188,1.57299,2288.2,2288.0,1.57619125]
[1725711300697,1.1359,2288.2,2288.1,0.4371]
[1725711300897,0.3862,2288.2,2288.1,2.442]
[1725711301102,0.43707,2288.3,2288.1,2.442]
[1725711301893,1.55285,2288.4,2288.2,0.80317]
[1725711303299,1.1158,2288.4,2288.3,0.43707]
[1725711303503,1.55285,2288.4,2288.2,0.80317]
[1725711304299,1.1158,2288.4,2288.3,0.43707]
[1725711304805,4.11,2288.8,2288.3,6.76867125]
[1725711304993,1.58308,2288.8,2288.6,0.43701]
[1725711305189,0.43699,2288.7,2288.5,0.43702]
[1725711305400,1.58308,2288.8,2288.5,0.43702]
[1725711305699,1.58308,2288.8,2288.5,0.79472]
[1725711305892,1.58308,2288.8,2288.6,0.3753]
[1725711306500,5.56834157,2288.8,2288.6,0.3753]
[1725711306697,3.41593848,2288.7,2288.6,0.81231]
[1725711307203,4.99901848,2288.8,2288.6,0.81231]
[1725711307401,1.58308,2288.8,2288.6,0.81231]
[1725711308612,1.1461,2288.8,2288.7,0.43699]
[1725711310406,1.1461,2288.8,2288.6,0.8123]
[1725711310407,1.58307,2288.8,2288.6,0.8123]
[1725711310607,1.1461,2288.8,2288.7,0.43699]
[1725711312004,0.7616,2288.8,2288.6,0.3753]
[1725711312205,0.7616,2288.8,2288.7,0.43699]
[1725711312609,0.3699,2288.8,2288.7,0.43699]
[1725711314903,0.43695,2288.9,2288.7,0.43699]
[1725711315101,1.19044,2289.0,2288.8,0.43697]
[1725711316115,1.19044,2289.0,2288.7,0.43698]
[1725711319311,0.43696,2288.9,2288.7,0.43698]
[1725711319514,3.2078,2288.8,2288.2,1.13907125]
[1725711319717,6.72119,2288.9,2288.1,5.90524687]
[1725711319718,0.43706,2288.4,2288.1,0.43709]
[1725711319905,2.4027,2288.3,2287.9,5.10147125]
[1725711320113,0.43711,2288.1,2287.9,3.2078]
[1725711320312,0.43711,2288.1,2287.8,8.94262913]
[1725711320612,0.43711,2288.1,2287.7,2.39907125]
[1725711320613,3.64491,2288.1,2287.7,1.26]
[1725711320810,3.64491,2288.1,2287.8,0.43715]
[1725711322317,3.64491,2288.1,2287.7,1.26]
[1725711322521,3.64491,2288.1,2287.7,1.69717]
[1725711322924,3.64491,2288.1,2287.7,1.26]
[1725711323116,3.64491,2288.1,2287.7,1.69718]
[1725711324113,1.26,2288.0,2287.5,9.29811125]
[1725711324317,1.26,2287.7,2287.1,7.40444]
[1725711324521,3.64505,2287.4,2286.9,0.43732]
[1725711324820,3.64505,2287.4,2286.9,1.69732]
[1725711325910,3.64505,2287.4,2286.9,0.43732]
[1725711327009,0.43725,2287.4,2287.0,0.43731]
[1725711328823,3.2078,2287.8,2287.4,0.43723]
[1725711329214,3.2078,2287.8,2287.3,0.7228]
[1725711329421,0.43721,2287.6,2287.3,0.7228]
[1725711331225,0.43722,2287.5,2287.2,3.45727]
[1725711331425,0.3846,2287.4,2287.2,3.45727]
[1725711333122,0.3846,2287.4,2287.2,6.66507]
[1725711333934,0.3846,2287.4,2287.3,0.43726]
[1725711334129,0.82184,2287.4,2287.2,6.2278]
[1725711334323,0.3846,2287.4,2287.2,6.66507]
[1725711334820,0.82184,2287.4,2287.2,6.2278]
[1725711335020,0.3846,2287.4,2287.2,6.66507]
[1725711336521,0.3846,2287.4,2287.2,3.45727]
[1725711336723,0.3846,2287.4,2287.2,6.66507]
[1725711337526,0.3846,2287.4,2287.2,3.45727]
[1725711337924,0.3846,2287.4,2287.2,6.66507]
[1725711338123,0.3846,2287.4,2287.2,6.2278]
[1725711339133,0.3846,2287.4,2287.2,6.66507]
[1725711340327,0.86224,2287.4,2287.2,6.66507]
[1725711341026,0.86224,2287.4,2287.2,6.2278]
[1725711341232,0.86224,2287.4,2287.2,3.2078]
[1725711342337,0.425,2287.4,2287.2,0.43727]
[1725711342637,0.425,2287.4,2287.2,0.82677]
[1725711342830,0.425,2287.4,2287.2,1.21607]
[1725711343933,0.0404,2287.4,2287.2,1.21607]
[1725711346637,0.0404,2287.4,2287.3,0.43726]
[1725711347733,0.47764,2287.4,2287.2,1.21606]
[1725711348038,0.0404,2287.4,2287.3,0.43726]
[1725711348245,0.47765,2287.4,2287.2,1.21607]
[1725711353839,0.84765,2287.4,2287.2,1.21607]
[1725711357034,0.0404,2287.4,2287.2,1.21607]
[1725711357538,0.47764,2287.4,2287.2,1.21607]
[1725711359039,0.43724,2287.4,2287.2,1.21607]
[1725711362843,0.80233,2287.5,2287.3,1.69726]
[1725711363044,0.3779,2287.6,2287.4,0.43723]
[1725711363045,0.43721,2287.6,2287.4,0.43723]
[1725711363246,0.43721,2287.6,2287.5,0.3671]
[1725711365342,0.43721,2287.6,2287.3,0.43724]
[1725711365343,0.43722,2287.5,2287.3,0.43724]
[1725711365546,0.43722,2287.5,2287.3,0.83184]
[1725711366947,0.43722,2287.5,2287.2,1.21607]
[1725711367145,0.3772,2287.4,2287.2,1.21607]
[1725711367449,0.3772,2287.4,2287.2,2.35514125]
[1725711367747,0.3772,2287.4,2287.2,1.21607]
[1725711368542,0.3772,2287.4,2287.3,0.43726]
[1725711369547,0.3772,2287.4,2287.3,1.57633125]
[1725711369748,0.79801,2287.6,2287.4,0.43724]
[1725711370053,0.79801,2287.6,2287.5,0.3886]
[1725711370549,0.3608,2287.6,2287.3,1.13907125]
[1725711370749,0.3608,2287.6,2287.1,1.13907125]
[1725711370750,1.09315,2287.3,2287.1,1.13907125]
[1725711370951,0.43731,2287.0,2286.9,1.13907125]
[1725711371155,0.43731,2287.0,2286.8,1.53017125]
[1725711371345,0.43731,2287.0,2286.8,0.3911]
[1725711371844,0.43733,2287.0,2286.8,0.3911]
[1725711372053,0.43733,2287.0,2286.8,1.53017125]
[1725711372447,0.43733,2287.0,2286.8,0.3911]
[1725711374052,0.43733,2287.0,2286.8,1.53017125]
[1725711374246,0.43733,2287.0,2286.8,1.96752125]
[1725711374447,0.43733,2287.0,2286.8,0.82845]
[1725711374846,3.64511,2287.1,2286.8,0.82845]
[1725711375046,0.43727,2287.3,2287.0,0.43731]
[1725711375254,0.43727,2287.3,2287.1,0.7381]
[1725711375453,0.43727,2287.3,2287.1,1.1262]
[1725711375653,0.43728,2287.2,2287.1,1.1262]
[1725711379760,0.4373,2287.1,2286.9,0.43732]
[1725711379960,0.831,2287.1,2286.9,0.81742]
[1725711380261,0.831,2287.1,2286.9,0.3801]
[1725711380455,0.831,2287.1,2286.8,0.7152]
[1725711380456,0.7522,2287.0,2286.8,0.7152]
[1725711380657,0.43739,2286.7,2286.5,1.49757125]
[1725711380848,0.7853,2286.6,2286.4,1.51917125]
[1725711381162,0.43741,2286.5,2286.4,0.3801]
[1725711381354,0.43741,2286.5,2286.2,1.85427125]
[1725711381549,0.43744,2286.4,2286.2,1.87767125]
[1725711381750,0.43744,2286.4,2286.2,0.7386]
[1725711382654,1.69742,2286.5,2286.2,0.7386]
[1725711383555,1.26,2286.5,2286.1,3.2078]
[1725711383865,0.43746,2286.3,2286.1,3.2078]
[1725711386162,0.43746,2286.3,2286.0,4.002]
[1725711388466,1.09353,2286.5,2286.0,3.5645]
[1725711388762,0.43746,2286.3,2286.0,4.00199]
[1725711390057,0.43744,2286.4,2286.1,0.43748]
[1725711391264,0.43745,2286.3,2286.1,0.43748]
[1725711392354,4.79111,2286.6,2286.3,0.43744]
[1725711392559,4.3537,2286.6,2286.4,0.7623]
[1725711393064,0.43741,2286.5,2286.4,0.7623]
[1725711393261,4.7911,2286.6,2286.4,0.7623]
[1725711393569,1.22269,2286.6,2286.4,0.7623]
[1725711393970,1.22269,2286.6,2286.4,1.1366]
[1725711394565,0.43739,2286.7,2286.4,1.1366]
[1725711394771,0.43738,2286.7,2286.4,1.1366]
[1725711395068,4.54736,2286.8,2286.5,0.43741]
[1725711395261,0.43737,2286.7,2286.5,0.4374]
[1725711395572,0.43737,2286.7,2286.4,1.57402]
[1725711398459,0.7552,2286.9,2286.6,0.43738]
[1725711398659,0.43736,2286.8,2286.5,0.43739]
[1725711399471,1.19255,2286.9,2286.6,0.43738]
[1725711399868,0.43735,2286.8,2286.6,0.43738]
[1725711400266,1.19255,2286.9,2286.6,0.43738]
[1725711400468,0.43735,2286.8,2286.6,0.43738]
[1725711400971,0.43735,2286.8,2286.5,0.43741]
[1725711401271,0.43737,2286.8,2286.5,0.43741]
[1725711401665,0.43737,2286.7,2286.5,0.43741]
[1725711401864,0.43736,2286.8,2286.6,0.43739]
[1725711402272,0.43736,2286.8,2286.5,0.4374]
[1725711402667,0.43736,2286.8,2286.6,0.43739]
[1725711402869,0.43736,2286.8,2286.5,0.4374]
[1725711403072,0.43736,2286.8,2286.6,0.43739]
[1725711403574,0.43736,2286.8,2286.5,0.4374]
[1725711407970,0.7552,2286.9,2286.4,1.1366]
[1725711408265,0.43734,2286.9,2286.7,0.43736]
[1725711408468,0.43733,2287.0,2286.8,1.53905]
[1725711409579,2.3888,2287.1,2286.8,1.1017]
[1725711409779,0.43733,2286.9,2286.8,1.1017]
[1725711412586,1.26,2287.3,2286.8,5.4745]
[1725711412785,0.43731,2287.1,2286.9,0.43732]
[1725711413180,0.4373,2287.1,2286.9,0.43732]
[1725711415283,0.4373,2287.1,2287.0,0.43731]
[1725711415484,0.43729,2287.2,2287.0,0.43731]
[1725711415984,0.43729,2287.2,2287.1,0.3568]
[1725711421288,3.64509,2287.2,2287.1,0.3568]
[1725711421991,0.4373,2287.1,2286.9,0.43732]
[1725711422290,0.4373,2287.1,2286.9,0.80272]
[1725711424684,0.3953,2287.0,2286.9,0.80272]
[1725711426882,3.2078,2287.2,2286.9,0.3654]
[1725711427085,1.44386135,3130.6,2287.1,4.4678]
[1725711427086,11.88855664,2287.8,2287.1,4.4678]
[1725711427290,0.3792,2287.7,2287.5,0.43721]
[1725711427794,0.3792,2287.7,2287.6,0.3767]
[1725711429191,0.7334,2287.8,2287.6,0.8139]
[1725711429495,0.3642,2287.9,2287.6,0.81389]
[1725711429801,5.20273,2288.2,2287.7,0.3918]
[1725711429802,0.7604,2288.1,2287.7,0.3918]
[1725711430096,0.7604,2288.1,2287.9,0.43714]
[1725711430291,0.7604,2288.1,2287.8,0.43715]
[1725711430597,0.7604,2288.1,2287.9,0.43713]
[1725711430799,0.3642,2288.2,2287.8,1.26]
[1725711431100,0.3642,2288.2,2288.0,0.43712]
[1725711431586,2.06206,2288.4,2288.0,0.4371]
[1725711431793,2.06206,2288.4,2288.0,0.43712]
[1725711431993,2.06206,2288.4,2288.1,0.4371]
[1725711431994,1.625,2288.4,2288.1,0.4371]
[1725711432391,2.06205,2288.4,2288.0,0.43711]
[1725711432697,0.3665,2288.5,2288.2,0.43708]
[1725711432892,0.3665,2288.5,2288.0,3.5648]
[1725711433199,0.3665,2288.5,2288.1,0.43709]
[1725711433200,0.80353,2288.5,2288.1,0.43709]
[1725711433398,0.80353,2288.5,2288.2,0.3676]
[1725711434102,0.43705,2288.4,2288.2,0.3676]
[1725711438702,0.80354,2288.5,2288.2,0.80468]
[1725711440904,0.43705,2288.4,2288.2,0.3676]
[1725711442109,1.69707,2288.3,2288.0,4.00191]
[1725711442412,0.3948,2288.2,2288.0,4.00191]
[1725711443514,0.3948,2288.2,2288.0,3.5648]
[1725711443701,0.3948,2288.2,2288.0,4.00192]
[1725711444201,0.4371,2288.1,2288.0,3.5648]
[1725711444397,0.43714,2288.0,2287.8,0.3776]
[1725711444605,0.3911,2288.1,2287.7,4.19664]
[1725711445208,0.43714,2288.0,2287.7,4.63382]
[1725711445802,0.43714,2288.0,2287.8,0.3894]
[1725711447007,0.43714,2288.0,2287.8,0.82656]
[1725711448003,0.43714,2288.0,2287.8,0.3894]
[1725711448205,0.82822,2288.1,2287.8,0.3894]
[1725711448502,0.43712,2288.0,2287.8,0.82655]
[1725711449298,0.3911,2288.1,2287.9,0.43713]
[1725711449906,0.43711,2288.1,2287.9,0.3813]
[1725711450105,0.43711,2288.1,2287.9,0.81844]
[1725711451409,0.43711,2288.1,2288.0,0.3946]
[1725711453311,0.3948,2288.2,2288.0,0.83172]
[1725711453312,0.8319,2288.2,2288.0,0.83172]
[1725711453500,0.3948,2288.2,2288.1,0.4371]
[1725711453700,0.43705,2288.4,2288.2,0.43708]
[1725711455101,0.43705,2288.4,2288.0,1.6546]
[1725711455102,0.43707,2288.3,2288.1,0.43709]
[1725711455410,0.43707,2288.3,2288.2,0.3913]
[1725711456115,0.43706,2288.4,2288.2,0.82839]
[1725711457912,0.43706,2288.4,2288.2,0.3913]
[1725711458413,0.43706,2288.4,2288.2,0.82838]
[1725711461316,0.43706,2288.4,2288.2,0.3913]
[1725711461618,0.43707,2288.3,2288.2,0.3913]
[1725711461816,0.43706,2288.4,2288.2,0.82838]
[1725711462518,0.43705,2288.4,2288.2,0.82837]
[1725711462820,4.03664,2288.5,2288.3,0.43707]
[1725711463712,4.03664,2288.5,2288.2,0.82837]
[1725711463921,0.43705,2288.4,2288.2,0.82837]
[1725711465617,0.43705,2288.4,2288.3,0.3764]
[1725711470221,4.03664,2288.5,2288.3,0.81346]
[1725711470421,4.03664,2288.5,2288.3,1.20726]
[1725711471429,0.3918,2288.5,2288.4,0.43705]
[1725711471817,1.20992,2288.6,2288.4,0.43705]
[1725711472126,0.7729,2288.6,2288.5,0.43703]
[1725711472317,3.2078,2288.8,2288.6,0.43701]
[1725711472517,3.2078,2288.8,2288.7,0.3876]
[1725711473324,3.2078,2288.8,2288.7,1.1528]
[1725711473928,3.2078,2288.8,2288.7,1.58979]
[1725711476132,4.77794,2289.0,2288.7,1.1528]
[1725711476332,0.43695,2288.9,2288.7,1.1528]
[1725711477237,0.43695,2288.9,2288.7,0.7718]
[1725711477446,0.43695,2288.9,2288.7,0.3876]
[1725711477939,4.77795,2289.0,2288.7,0.3876]
[1725711478743,4.77795,2289.0,2288.7,0.82459]
[1725711479547,1.57015,2289.0,2288.7,0.82459]
[1725711479746,4.77795,2289.0,2288.7,0.82459]
[1725711480742,4.77795,2289.0,2288.7,0.3876]
[1725711480743,0.43695,2288.9,2288.7,0.3876]
[1725711483038,0.437,2288.7,2288.5,0.7414]
[1725711483352,0.43698,2288.8,2288.5,1.56342]
[1725711483551,0.3611,2288.6,2288.5,1.56342]
[1725711485853,0.3611,2288.6,2288.5,5.93302]